bitfinex/quotes_BTCUSD_20220201
["timestamp","ask_amount","ask_price","bid_price","bid_amount"]
[1643685641232,0.0010026,38578.0,38575.0,0.513997]
[1643685641432,0.0010026,38578.0,38577.0,0.349197]
[1643685641634,0.0010026,38578.0,38577.0,1.150097]
[1643685643334,0.0010026,38578.0,38577.0,0.8009]
[1643685644986,0.07566211,38578.0,38577.0,0.8009]
[1643685645188,0.12566211,38578.0,38577.0,0.8009]
[1643685645587,0.07566211,38578.0,38577.0,0.8009]
[1643685645786,0.12566211,38578.0,38577.0,0.8009]
[1643685650532,0.39838807,38578.0,38577.0,0.8009]
[1643685650734,1.24838807,38578.0,38577.0,0.8009]
[1643685650934,1.64948507,38578.0,38577.0,0.07279229]
[1643685651134,2.02208731,38578.0,38577.0,0.07279229]
[1643685651337,1.17208731,38578.0,38577.0,0.07279229]
[1643685652179,1.07208731,38578.0,38577.0,0.07279229]
[1643685652880,1.02018731,38578.0,38577.0,0.07279229]
[1643685655534,0.74758507,38578.0,38577.0,0.07279229]
[1643685661782,0.79758507,38578.0,38577.0,0.07279229]
[1643685662735,0.74758507,38578.0,38577.0,0.07279229]
[1643685662930,0.69758507,38578.0,38577.0,0.07279229]
[1643685664332,0.74758507,38578.0,38577.0,0.07279229]
[1643685666787,0.47485911,38578.0,38577.0,0.07279229]
[1643685666981,0.12566211,38578.0,38577.0,0.07279229]
[1643685669387,0.07566211,38578.0,38577.0,0.07279229]
[1643685669585,0.12566211,38578.0,38577.0,0.70844111]
[1643685669985,0.07566211,38578.0,38577.0,0.70844111]
[1643685671438,0.07566211,38578.0,38577.0,0.42198929]
[1643685671636,0.07566211,38578.0,38577.0,0.07279229]
[1643685672039,0.12559962,38578.0,38577.0,0.07279229]
[1643685672236,2.70849618,38578.0,38577.0,0.07279229]
[1643685672536,3.29228141,38578.0,38577.0,0.07279229]
[1643685673986,0.70938485,38578.0,38577.0,0.07279229]
[1643685674187,0.12559962,38578.0,38577.0,0.07279229]
[1643685678432,0.14115373,38578.0,38577.0,0.07279229]
[1643685679035,0.06649422,38578.0,38577.0,0.07279229]
[1643685679233,0.01649422,38578.0,38577.0,0.07279229]
[1643685682387,0.115077,38578.0,38577.0,0.07279229]
[1643685682581,0.165077,38578.0,38577.0,0.07279229]
[1643685685239,0.01649422,38578.0,38577.0,0.33959275]
[1643685685831,0.01649422,38578.0,38577.0,0.07279229]
[1643685687536,0.09076266,38578.0,38577.0,0.07279229]
[1643685687934,0.14076266,38578.0,38577.0,0.07279229]
[1643685689883,0.06649422,38578.0,38577.0,0.07279229]
[1643685690282,0.01649422,38578.0,38577.0,0.07279229]
[1643685690884,0.01649422,38578.0,38577.0,0.36474029]
[1643685692387,0.01649422,38578.0,38577.0,0.07279229]
[1643685693633,0.0164243,38578.0,38577.0,0.07279229]
[1643685694936,0.09942149,38578.0,38577.0,0.07279229]
[1643685697284,0.0164243,38578.0,38577.0,0.07279229]
[1643685702939,0.0164243,38578.0,38577.0,0.3312159]
[1643685703139,0.0164243,38578.0,38577.0,0.07279229]
[1643685703995,0.0164243,38578.0,38577.0,0.32838787]
[1643685704196,0.0164243,38578.0,38577.0,0.67758487]
[1643685704797,0.0164243,38578.0,38577.0,0.85461365]
[1643685704999,0.00145598,38579.0,38577.0,0.57388929]
[1643685705203,0.00145598,38579.0,38578.0,0.478789]
[1643685705399,0.01015955,38589.0,38578.0,2.159689]
[1643685705603,0.06015955,38589.0,38579.0,0.28072436]
[1643685705801,0.01015955,38589.0,38582.0,0.37605693]
[1643685706599,0.01015955,38589.0,38586.0,0.29674196]
[1643685709342,0.01174312,38589.0,38586.0,0.29674196]
[1643685710142,0.01015955,38589.0,38586.0,0.29674196]
[1643685710542,0.01174312,38589.0,38586.0,0.29674196]
[1643685711344,0.01015955,38589.0,38586.0,0.29674196]
[1643685711587,0.01174312,38589.0,38586.0,0.29674196]
[1643685712487,0.01015955,38589.0,38586.0,0.29674196]
[1643685712889,0.01165377,38589.0,38586.0,0.29674196]
[1643685713790,0.01015955,38589.0,38586.0,0.29674196]
[1643685714189,0.01165377,38589.0,38586.0,0.29674196]
[1643685714988,0.01015955,38589.0,38586.0,0.29674196]
[1643685715234,0.01165377,38589.0,38586.0,0.29674196]
[1643685715836,0.2062167,38593.0,38586.0,0.29674196]
[1643685716036,0.349197,38592.0,38586.0,0.29674196]
[1643685717037,0.349197,38592.0,38587.0,0.25389962]
[1643685717237,0.344197,38592.0,38587.0,0.25249549]
[1643685717539,0.344197,38592.0,38587.0,0.25626523]
[1643685717737,0.10845042,38593.0,38586.0,0.29674196]
[1643685717738,0.00086456,38591.0,38586.0,0.29674196]
[1643685718740,0.10845042,38593.0,38586.0,0.29674196]
[1643685718987,0.00086455,38591.0,38586.0,0.29674196]
[1643685719884,0.10845042,38593.0,38586.0,0.29674196]
[1643685720085,0.00165749,38591.0,38586.0,0.29674196]
[1643685720486,0.00165749,38591.0,38587.0,0.25022745]
[1643685720686,0.00165749,38591.0,38586.0,0.29674196]
[1643685721085,0.00070936,38594.0,38586.0,0.29674196]
[1643685721291,0.00165749,38591.0,38586.0,0.29674196]
[1643685722286,0.06550424,38594.0,38586.0,0.29674196]
[1643685722488,0.00165749,38591.0,38586.0,0.29674196]
[1643685723435,0.06550424,38594.0,38586.0,0.29674196]
[1643685723937,0.00147899,38591.0,38586.0,0.29674196]
[1643685724734,0.06550424,38594.0,38586.0,0.29674196]
[1643685724935,0.00147899,38591.0,38586.0,0.29674196]
[1643685725835,0.00070936,38594.0,38586.0,0.29674196]
[1643685726034,0.00147899,38591.0,38586.0,0.29674196]
[1643685726885,0.00147899,38591.0,38586.0,0.064795]
[1643685727086,0.00070936,38594.0,38586.0,0.064795]
[1643685727286,0.398929,38593.0,38586.0,0.064795]
[1643685727485,0.00151915,38591.0,38586.0,0.064795]
[1643685728286,0.06550429,38594.0,38586.0,0.064795]
[1643685728487,0.348929,38593.0,38586.0,0.064795]
[1643685728686,0.00151915,38591.0,38586.0,0.064795]
[1643685729486,0.11550429,38594.0,38586.0,0.064795]
[1643685729687,0.00151915,38591.0,38586.0,0.064795]
[1643685730088,0.00151915,38591.0,38586.0,0.06468022]
[1643685730339,0.00151915,38591.0,38587.0,0.2535726]
[1643685730539,0.00151915,38591.0,38587.0,0.3831536]
[1643685730839,0.00070936,38594.0,38591.0,0.30166847]
[1643685731437,0.348929,38593.0,38591.0,0.30166847]
[1643685731640,0.398929,38593.0,38591.0,0.30166847]
[1643685732041,0.05,38593.0,38592.0,0.25598176]
[1643685732239,0.64748707,38598.0,38592.0,0.85]
[1643685732445,0.68376421,38600.0,38594.0,0.05]
[1643685732446,0.10045,38600.0,38594.0,0.05]
[1643685732640,0.10045,38600.0,38595.0,0.33888176]
[1643685732840,0.10045,38600.0,38597.0,0.30858187]
[1643685733040,0.09655852,38600.0,38598.0,1.929396]
[1643685733242,0.09655852,38600.0,38599.0,0.348896]
[1643685733441,6.08905576,38601.0,38600.0,0.85]
[1643685733642,6.08905576,38601.0,38600.0,4.4357754]
[1643685733643,5.42985576,38601.0,38600.0,4.4357754]
[1643685733840,5.42985576,38601.0,38600.0,3.806296]
[1643685734090,4.79290658,38601.0,38600.0,3.806296]
[1643685734297,0.02167577,38601.0,38600.0,3.806296]
[1643685734492,0.00031341,38604.0,38600.0,3.806296]
[1643685734493,0.00031341,38604.0,38601.0,0.85]
[1643685734693,0.00031339,38615.0,38604.0,0.85]
[1643685734694,0.01015412,38609.0,38604.0,0.85]
[1643685734892,0.00031339,38615.0,38608.0,0.348896]
[1643685735093,0.02038453,38618.0,38609.0,1.5803]
[1643685735291,0.02038453,38618.0,38610.0,0.348896]
[1643685735490,0.02038453,38618.0,38611.0,0.0519]
[1643685735890,0.35381744,38617.0,38611.0,0.0519]
[1643685736293,0.16917935,38617.0,38611.0,0.0519]
[1643685736491,0.02038453,38618.0,38611.0,0.0519]
[1643685736693,0.02038453,38618.0,38612.0,0.348896]
[1643685737092,0.02038453,38618.0,38613.0,0.064741]
[1643685738339,0.02038453,38618.0,38616.0,0.07816381]
[1643685738937,0.00166403,38617.0,38616.0,0.07816381]
[1643685739341,0.00166403,38617.0,38616.0,0.42705981]
[1643685739540,0.00120661,38617.0,38616.0,0.42705981]
[1643685739937,0.02038453,38618.0,38616.0,0.42705981]
[1643685740141,0.02038453,38618.0,38616.0,0.07816381]
[1643685740738,0.02038453,38618.0,38612.0,0.40434393]
[1643685740939,0.02038453,38618.0,38613.0,1.5802]
[1643685741342,0.28918772,38618.0,38613.0,1.5802]
[1643685741590,0.28918772,38618.0,38613.0,1.5283]
[1643685741787,0.07832733,38616.0,38613.0,1.5283]
[1643685742090,0.0519,38617.0,38613.0,1.5283]
[1643685742485,0.049418,38616.0,38613.0,1.5283]
[1643685742889,0.02038453,38618.0,38614.0,0.29916092]
[1643685743186,0.02038453,38618.0,38613.0,1.62026007]
[1643685745252,0.02038453,38618.0,38614.0,0.27555682]
[1643685745438,0.07038453,38618.0,38615.0,0.348896]
[1643685745637,0.02038453,38618.0,38615.0,0.348896]
[1643685745837,0.07038453,38618.0,38615.0,0.343896]
[1643685746440,0.07038453,38618.0,38613.0,1.62026007]
[1643685747738,0.07038453,38618.0,38614.0,0.05]
[1643685748992,0.02038453,38618.0,38614.0,0.114745]
[1643685749193,0.02038453,38618.0,38614.0,0.064745]
[1643685750198,0.02038453,38618.0,38613.0,1.62026007]
[1643685750398,0.02038453,38618.0,38613.0,1.5283]
[1643685751500,0.09400751,38618.0,38613.0,1.5283]
[1643685751697,0.1587598,38618.0,38613.0,1.5283]
[1643685752741,0.06475678,38615.0,38613.0,1.5283]
[1643685752936,0.02038453,38618.0,38613.0,1.5283]
[1643685753137,0.06538453,38618.0,38613.0,1.5283]
[1643685753539,0.02038453,38618.0,38613.0,1.5283]
[1643685753937,0.02038453,38618.0,38613.0,1.62544145]
[1643685754738,0.02038453,38618.0,38613.0,1.5283]
[1643685755539,0.02038453,38618.0,38614.0,0.064747]
[1643685756483,0.02038453,38618.0,38613.0,1.5283]
[1643685756884,0.01538453,38618.0,38613.0,1.5283]
[1643685758587,0.01538453,38618.0,38614.0,0.064747]
[1643685758787,0.01538453,38618.0,38614.0,0.13860462]
[1643685759790,0.01538453,38618.0,38614.0,0.41020128]
[1643685760093,0.01538453,38618.0,38617.0,0.064742]
[1643685760737,0.01538453,38618.0,38614.0,0.27159666]
[1643685760935,0.01538453,38618.0,38615.0,0.064746]
[1643685761538,0.01538453,38618.0,38613.0,1.5283]
[1643685764090,0.2618159,38616.0,38613.0,1.5283]
[1643685764292,0.3118159,38616.0,38613.0,1.5283]
[1643685764491,0.05,38616.0,38613.0,1.5283]
[1643685764893,0.01538453,38618.0,38614.0,0.27235567]
[1643685765594,0.01538453,38618.0,38614.0,0.27323492]
[1643685765791,0.01538453,38618.0,38615.0,1.876914]
[1643685766591,0.01538453,38618.0,38616.0,0.2734055]
[1643685766793,0.01538453,38618.0,38617.0,1.876914]
[1643685768238,0.01538453,38618.0,38617.0,1.941652]
[1643685774393,0.01538453,38618.0,38617.0,1.592938]
[1643685780092,0.01531823,38618.0,38617.0,1.592938]
[1643685781497,0.01531823,38618.0,38617.0,1.941652]
[1643685781897,0.01531823,38618.0,38617.0,1.876914]
[1643685782399,0.01531823,38618.0,38617.0,1.5282]
[1643685791040,0.31984494,38618.0,38617.0,1.5282]
[1643685791242,0.36984494,38618.0,38617.0,1.5282]
[1643685791640,0.06531823,38618.0,38617.0,1.5282]
[1643685792043,0.01531823,38618.0,38617.0,1.5282]
[1643685796394,0.01531823,38618.0,38617.0,1.528055]
[1643685799149,0.41976523,38618.0,38617.0,1.528055]
[1643685799344,0.46976523,38618.0,38617.0,1.528055]
[1643685800143,0.06976523,38618.0,38617.0,1.528055]
[1643685801489,0.11976523,38618.0,38617.0,1.528055]
[1643685806345,0.44700742,38618.0,38617.0,0.8006155]
[1643685806544,1.29700742,38618.0,38617.0,0.8006155]
[1643685806948,0.44700742,38618.0,38617.0,0.8006155]
[1643685807546,0.49890742,38618.0,38617.0,0.8006155]
[1643685807945,0.74890742,38618.0,38617.0,0.8006155]
[1643685808548,0.96412306,38618.0,38617.0,0.8006155]
[1643685808846,1.11412306,38618.0,38617.0,0.8006155]
[1643685809286,1.28871025,38618.0,38617.0,0.8006155]
[1643685809885,0.74625242,38618.0,38617.0,0.8006155]
[1643685810185,1.07349461,38618.0,38617.0,0.8006155]
[1643685810585,0.74625242,38618.0,38617.0,0.8006155]
[1643685810788,0.74625242,38618.0,38605.0,0.00132798]
[1643685810789,0.064771,38612.0,38605.0,0.00132798]
[1643685810987,0.171118,38611.0,38605.0,0.00132798]
[1643685811189,0.221118,38611.0,38605.0,0.01991222]
[1643685811591,0.156347,38611.0,38605.0,0.01858424]
[1643685811787,0.23160762,38610.0,38605.0,0.01858424]
[1643685811994,0.2963812,38610.0,38605.0,0.01991222]
[1643685812191,0.08230488,38606.0,38605.0,0.01991222]
[1643685812840,0.19381643,38610.0,38605.0,0.01858424]
[1643685813140,0.07770603,38606.0,38605.0,0.01858424]
[1643685813340,0.12770603,38606.0,38605.0,0.01858424]
[1643685813539,0.12770603,38606.0,38604.0,0.00132801]
[1643685813940,0.14378927,38617.0,38605.0,0.064759]
[1643685814139,0.14378927,38617.0,38606.0,0.29558704]
[1643685814340,0.19378927,38617.0,38606.0,0.29558704]
[1643685814739,0.19378927,38617.0,38606.0,0.42508804]
[1643685814943,0.19378927,38617.0,38609.0,0.064752]
[1643685815240,0.06474897,38616.0,38612.0,0.07630742]
[1643685815640,0.06474897,38616.0,38606.0,0.27728412]
[1643685815840,0.17211937,38617.0,38609.0,0.129495]
[1643685816042,0.06475474,38614.0,38605.0,0.77842798]
[1643685816240,0.1501301,38617.0,38605.0,0.77842798]
[1643685816491,0.1501301,38617.0,38605.0,0.7771]
[1643685816689,0.28607423,38613.0,38608.0,0.08489319]
[1643685816889,0.33607423,38613.0,38608.0,0.08489319]
[1643685817292,0.06475794,38612.0,38605.0,0.77842798]
[1643685817490,0.06475794,38612.0,38607.0,0.129502]
[1643685817892,0.05,38613.0,38607.0,0.129502]
[1643685818291,0.1651,38616.0,38607.0,0.129502]
[1643685818491,0.1651,38616.0,38612.0,0.07457105]
[1643685818691,0.05,38616.0,38612.0,0.07457105]
[1643685818991,0.054447,38615.0,38607.0,0.129502]
[1643685819193,0.1501301,38617.0,38608.0,0.27943053]
[1643685819392,0.06475193,38614.0,38608.0,0.27601402]
[1643685819594,0.06475193,38614.0,38607.0,0.129502]
[1643685820445,0.06475193,38614.0,38609.0,0.064749]
[1643685820649,0.06475193,38614.0,38609.0,0.14952176]
[1643685821547,0.06475193,38614.0,38609.0,0.08477276]
[1643685821948,0.06475193,38614.0,38607.0,0.129502]
[1643685822151,0.12951617,38615.0,38605.0,0.77842798]
[1643685822152,0.12951617,38615.0,38605.0,0.84318798]
[1643685822350,0.06475918,38612.0,38605.0,0.84318798]
[1643685822549,0.29337394,38612.0,38605.0,0.84186]
[1643685822748,0.34337394,38612.0,38605.0,0.84318798]
[1643685823849,0.08926693,38610.0,38605.0,0.92778914]
[1643685824088,0.06476029,38609.0,38605.0,0.92911712]
[1643685824289,0.06476029,38609.0,38605.0,0.86435712]
[1643685824488,0.06476029,38609.0,38605.0,0.77842798]
[1643685825089,0.06476029,38609.0,38605.0,0.7771]
[1643685825293,0.06476029,38609.0,38605.0,0.77842798]
[1643685826291,0.08926693,38610.0,38606.0,0.081644]
[1643685826492,0.08926693,38610.0,38606.0,0.146402]
[1643685826691,0.22861476,38612.0,38606.0,0.146402]
[1643685827092,0.27861476,38612.0,38606.0,0.146402]
[1643685827296,0.11476092,38612.0,38606.0,0.146402]
[1643685827492,0.12452225,38615.0,38606.0,0.146402]
[1643685827753,0.1748,38616.0,38612.0,0.09531131]
[1643685827946,0.054447,38615.0,38612.0,0.09531131]
[1643685828445,0.05,38615.0,38612.0,0.09531131]
[1643685828646,0.31402376,38617.0,38612.0,0.09531131]
[1643685828845,0.054447,38616.0,38612.0,0.09531131]
[1643685829246,0.054447,38616.0,38606.0,0.2778449]
[1643685829448,0.06475551,38615.0,38608.0,0.064755]
[1643685829852,0.06475551,38615.0,38605.0,0.7771]
[1643685830048,0.2413372,38607.0,38605.0,0.77842798]
[1643685830448,0.08831209,38608.0,38605.0,0.77842798]
[1643685830747,0.12,38614.0,38606.0,0.5]
[1643685830947,0.18475709,38614.0,38606.0,0.564758]
[1643685831792,0.10307823,38613.0,38606.0,0.564758]
[1643685832193,0.10307823,38613.0,38606.0,0.84065519]
[1643685832396,0.10307823,38613.0,38609.0,0.08125627]
[1643685832593,0.37523428,38614.0,38609.0,0.064753]
[1643685832794,0.25523428,38614.0,38609.0,0.064753]
[1643685833193,0.30523428,38614.0,38606.0,0.5]
[1643685833393,0.3699918,38614.0,38606.0,0.5]
[1643685833994,0.34050564,38608.0,38606.0,0.5]
[1643685834395,0.60332304,38608.0,38606.0,0.5]
[1643685834792,0.60332304,38608.0,38605.0,0.7771]
[1643685835247,0.60332304,38608.0,38605.0,0.77842798]
[1643685835248,0.054447,38607.0,38605.0,0.77842798]
[1643685836041,0.054447,38607.0,38605.0,0.7771]
[1643685836240,0.34624281,38607.0,38605.0,0.7771]
[1643685836441,0.41101503,38607.0,38605.0,0.7771]
[1643685836643,0.46101503,38607.0,38605.0,0.7771]
[1643685837043,0.16921922,38607.0,38605.0,0.7771]
[1643685837242,0.45563431,38607.0,38605.0,0.7771]
[1643685837443,0.28313352,38606.0,38605.0,0.7771]
[1643685837645,0.054447,38606.0,38605.0,0.7771]
[1643685839892,0.34611909,38606.0,38605.0,0.7771]
[1643685841294,0.054447,38606.0,38605.0,0.7771]
[1643685841893,0.33867996,38606.0,38605.0,0.7771]
[1643685842295,0.054447,38606.0,38605.0,0.7771]
[1643685842496,0.06477222,38607.0,38605.0,0.7771]
[1643685842750,0.28492301,38606.0,38605.0,0.7771]
[1643685843044,0.06477222,38607.0,38605.0,0.7771]
[1643685843240,0.05527786,38608.0,38605.0,0.7771]
[1643685843641,0.29511587,38607.0,38605.0,0.7771]
[1643685843841,0.32047711,38606.0,38605.0,0.7771]
[1643685844042,0.71799666,38606.0,38605.0,0.7771]
[1643685844242,3.30955938,38606.0,38605.0,0.7771]
[1643685844844,0.054447,38606.0,38605.0,0.7771]
[1643685845046,0.06476681,38608.0,38605.0,0.7771]
[1643685845346,0.30228066,38612.0,38605.0,0.7771]
[1643685845548,0.1187,38613.0,38605.0,0.7771]
[1643685846142,0.1187,38613.0,38605.0,0.77857729]
[1643685846346,0.06476166,38612.0,38608.0,0.07833625]
[1643685846588,0.06476166,38612.0,38605.0,0.84334029]
[1643685846990,0.58003433,38614.0,38605.0,0.841863]
[1643685847190,0.27775367,38614.0,38605.0,0.84315738]
[1643685848194,0.27775367,38614.0,38605.0,0.841863]
[1643685848393,0.09376723,38613.0,38605.0,0.84315738]
[1643685848991,0.09376723,38613.0,38605.0,0.82815738]
[1643685849390,0.09376723,38613.0,38605.0,0.826863]
[1643685849792,0.15852914,38613.0,38606.0,0.09549455]
[1643685850246,0.44387719,38613.0,38606.0,0.09549455]
[1643685850441,0.31151623,38608.0,38606.0,0.09549455]
[1643685850640,0.31151623,38608.0,38605.0,0.7621]
[1643685851041,0.31151623,38608.0,38605.0,0.76343553]
[1643685851842,0.22329941,38613.0,38605.0,0.7621]
[1643685852342,0.22329941,38613.0,38605.0,0.76343554]
[1643685852943,0.52206609,38613.0,38605.0,0.76343554]
[1643685853144,0.52206609,38613.0,38605.0,0.7621]
[1643685853451,0.25028136,38606.0,38605.0,0.76343553]
[1643685854091,0.064767,38612.0,38605.0,0.76343553]
[1643685854291,0.064767,38612.0,38605.0,0.7621]
[1643685855090,0.31063211,38608.0,38605.0,0.7621]
[1643685855291,0.45998244,38608.0,38605.0,0.7621]
[1643685855689,0.45998244,38608.0,38605.0,0.7521]
[1643685855890,0.45998244,38608.0,38605.0,0.75342628]
[1643685856690,0.45998244,38608.0,38605.0,0.7521]
[1643685856890,0.45998244,38608.0,38605.0,0.75342628]
[1643685857940,0.45998244,38608.0,38605.0,0.7521]
[1643685858143,0.45998244,38608.0,38605.0,0.75342836]
[1643685858144,0.50998244,38608.0,38605.0,0.75342836]
[1643685858643,0.054447,38607.0,38605.0,0.75342836]
[1643685859040,0.054447,38607.0,38605.0,0.7521]
[1643685859441,0.57475644,38608.0,38605.0,0.7521]
[1643685859841,0.57475444,38608.0,38605.0,0.7521]
[1643685860541,0.57475444,38608.0,38605.0,0.75342836]
[1643685861591,0.57475444,38608.0,38605.0,0.7521]
[1643685861791,0.57475444,38608.0,38605.0,0.75342789]
[1643685862793,0.57475444,38608.0,38605.0,0.7521]
[1643685863091,0.52475444,38608.0,38605.0,0.75342789]
[1643685863893,0.52475444,38608.0,38605.0,0.7521]
[1643685864093,0.52475444,38608.0,38605.0,0.75342789]
[1643685864094,0.57475444,38608.0,38605.0,0.75342789]
[1643685865246,0.63952844,38608.0,38605.0,0.753428]
[1643685865746,0.58952844,38608.0,38605.0,0.753428]
[1643685865956,0.52475444,38608.0,38605.0,0.753428]
[1643685866146,0.57475444,38608.0,38605.0,0.753428]
[1643685866349,0.57475444,38608.0,38605.0,0.7521]
[1643685866546,0.63952744,38608.0,38605.0,0.7521]
[1643685866748,0.63952744,38608.0,38605.0,0.753428]
[1643685866955,0.63952744,38608.0,38595.0,0.01851555]
[1643685866956,0.85,38605.0,38595.0,0.01851555]
[1643685867154,0.064788,38603.0,38595.0,0.01851555]
[1643685867348,0.40726966,38602.0,38595.0,0.01851555]
[1643685867549,0.47206366,38602.0,38595.0,0.03950802]
[1643685867747,0.35448556,38596.0,38590.0,0.0738658]
[1643685867946,0.35448556,38596.0,38585.0,0.1178]
[1643685867947,0.29156571,38591.0,38585.0,0.1178]
[1643685868149,0.29156571,38591.0,38580.0,0.5696]
[1643685868350,0.29156571,38591.0,38582.0,0.129582]
[1643685868550,0.29156571,38591.0,38583.0,0.77754]
[1643685869191,0.1001966,38590.0,38585.0,0.09313345]
[1643685869393,0.29156571,38591.0,38585.0,0.09313345]
[1643685870294,0.35636,38591.0,38585.0,0.09151248]
[1643685870495,0.35636,38591.0,38586.0,0.00162091]
[1643685871498,0.35636,38591.0,38585.0,0.09151248]
[1643685871795,0.35636,38591.0,38587.0,0.00162089]
[1643685872598,0.29156571,38591.0,38585.0,0.15630648]
[1643685872843,0.1136,38595.0,38587.0,0.00162087]
[1643685873141,0.1636,38595.0,38587.0,0.00162087]
[1643685873543,0.26186574,38595.0,38587.0,0.00162087]
[1643685873742,0.25736615,38591.0,38587.0,0.00162087]
[1643685873944,0.25736615,38591.0,38585.0,0.14151248]
[1643685874147,0.25736615,38591.0,38589.0,0.00162079]
[1643685874746,0.1136,38595.0,38589.0,0.00162079]
[1643685875047,0.1136,38595.0,38587.0,0.064791]
[1643685875444,0.06479127,38594.0,38588.0,0.00162083]
[1643685875845,0.31148765,38593.0,38588.0,0.00162083]
[1643685876244,0.31148765,38593.0,38587.0,0.064791]
[1643685876492,0.31148765,38593.0,38589.0,0.00162081]
[1643685877592,0.31148765,38593.0,38589.0,0.00162079]
[1643685878394,0.08109909,38590.0,38589.0,0.00162079]
[1643685879894,0.08109909,38590.0,38584.0,0.36871936]
[1643685880094,0.08109909,38590.0,38588.0,0.00162085]
[1643685881041,0.08109909,38590.0,38584.0,0.064795]
[1643685881242,0.08109909,38590.0,38587.0,0.00162087]
[1643685882240,0.08109909,38590.0,38583.0,0.77754]
[1643685882441,0.06479928,38589.0,38587.0,0.00162089]
[1643685883442,0.06479928,38589.0,38583.0,0.77754]
[1643685883642,0.06479928,38589.0,38586.0,0.00162091]
[1643685884794,0.28364541,38587.0,38583.0,0.77754]
[1643685884993,0.28364541,38587.0,38586.0,0.00162093]
[1643685885993,0.28364541,38587.0,38583.0,0.77754]
[1643685886294,0.28364541,38587.0,38585.0,0.00162097]
[1643685887094,0.28364541,38587.0,38583.0,0.76916097]
[1643685887296,0.33364541,38587.0,38584.0,0.001621]
[1643685887595,0.054447,38586.0,38584.0,0.001621]
[1643685888452,0.28364541,38587.0,38583.0,0.76916097]
[1643685888651,0.28364541,38587.0,38583.0,0.77041727]
[1643685889651,0.28364541,38587.0,38583.0,0.76916097]
[1643685889853,0.28364541,38587.0,38583.0,0.77041727]
[1643685890453,0.28364541,38587.0,38583.0,0.86165449]
[1643685890652,0.06479913,38589.0,38584.0,0.27626238]
[1643685890855,0.1136,38595.0,38584.0,0.34380186]
[1643685891053,0.1636,38595.0,38584.0,0.34380186]
[1643685891255,0.1636,38595.0,38584.0,0.064794]
[1643685891507,0.1636,38595.0,38584.0,0.33699903]
[1643685891706,0.1636,38595.0,38584.0,0.33905417]
[1643685891905,0.21639417,38594.0,38584.0,0.34386842]
[1643685892309,0.10320101,38589.0,38584.0,0.064794]
[1643685893506,0.21639417,38594.0,38584.0,0.064794]
[1643685894408,0.28118793,38594.0,38584.0,0.064794]
[1643685894809,0.09823246,38593.0,38584.0,0.064794]
[1643685895248,0.09823246,38593.0,38584.0,0.33894459]
[1643685895440,0.09823246,38593.0,38584.0,0.064794]
[1643685896140,0.09823246,38593.0,38585.0,0.37173259]
[1643685896340,0.06479376,38594.0,38586.0,0.27626192]
[1643685897542,0.06479376,38594.0,38591.0,0.1003662]
[1643685898743,0.06479376,38594.0,38586.0,0.27400103]
[1643685898998,0.3603,38598.0,38586.0,0.33879203]
[1643685899195,0.4103,38598.0,38587.0,0.0519]
[1643685899494,0.4103,38598.0,38588.0,0.32574369]
[1643685899697,0.1581306,38598.0,38593.0,0.08221429]
[1643685899893,0.1581306,38598.0,38588.0,0.30392436]
[1643685900094,0.1581306,38598.0,38589.0,0.348714]
[1643685900295,0.1081306,38598.0,38588.0,0.30392436]
[1643685900495,0.10257524,38598.0,38588.0,0.30392436]
[1643685900994,0.10257524,38598.0,38589.0,0.348714]
[1643685901397,0.10257524,38598.0,38588.0,0.129561]
[1643685901600,0.15257524,38598.0,38588.0,0.2929178]
[1643685901796,0.15257524,38598.0,38587.0,0.0519]
[1643685902198,0.15257524,38598.0,38588.0,0.27490279]
[1643685902395,0.15257524,38598.0,38587.0,0.0519]
[1643685902595,0.06479267,38595.0,38588.0,0.27419473]
[1643685902846,0.06479267,38595.0,38589.0,0.7858]
[1643685903446,0.27506211,38593.0,38589.0,0.7858]
[1643685903646,0.27506211,38593.0,38589.0,1.05805764]
[1643685903846,0.27506211,38593.0,38589.0,0.7858]
[1643685904548,0.05,38596.0,38590.0,0.27265187]
[1643685904750,0.21736213,38598.0,38589.0,0.7858]
[1643685904950,0.21736213,38598.0,38589.0,1.06425107]
[1643685905447,0.21736213,38598.0,38589.0,0.80591623]
[1643685905647,0.21736213,38598.0,38589.0,0.87070323]
[1643685906249,0.21736213,38598.0,38589.0,1.12401359]
[1643685906495,0.21736213,38598.0,38589.0,1.1237342]
[1643685906696,0.06478818,38596.0,38589.0,0.850587]
[1643685906896,0.06478818,38596.0,38589.0,1.12386652]
[1643685907097,0.06478818,38596.0,38589.0,0.850587]
[1643685907300,0.06478818,38596.0,38589.0,1.12357011]
[1643685907498,0.11478818,38596.0,38589.0,1.14360638]
[1643685907799,0.11478818,38596.0,38590.0,0.27337477]
[1643685907999,0.06478818,38596.0,38589.0,0.850587]
[1643685908298,0.27980757,38593.0,38589.0,0.850587]
[1643685908500,0.27980757,38593.0,38589.0,0.7858]
[1643685908698,0.06479274,38594.0,38589.0,0.7858]
[1643685909099,0.05,38596.0,38589.0,0.7858]
[1643685909500,0.05,38596.0,38592.0,0.08742499]
[1643685909902,0.05,38596.0,38589.0,0.7858]
[1643685910101,0.15257524,38598.0,38589.0,0.7858]
[1643685911141,0.15247419,38598.0,38590.0,0.0743914]
[1643685911354,0.06478694,38597.0,38590.0,0.0743914]
[1643685912143,0.064789,38596.0,38590.0,0.0743914]
[1643685912344,0.114789,38596.0,38590.0,0.0743914]
[1643685913243,0.114789,38596.0,38589.0,0.850587]
[1643685913244,0.06479117,38595.0,38589.0,0.7858]
[1643685913443,0.064796,38594.0,38589.0,0.7858]
[1643685914095,0.27950135,38592.0,38589.0,0.7858]
[1643685914494,0.32950135,38592.0,38589.0,0.7858]
[1643685915299,0.14394863,38591.0,38589.0,0.7858]
[1643685917296,0.20874533,38591.0,38589.0,0.7858]
[1643685919349,0.1295937,38591.0,38589.0,0.7858]
[1643685919551,0.32950135,38592.0,38589.0,0.7858]
[1643685920751,0.42771686,38592.0,38589.0,0.7858]
[1643685922295,0.32950135,38592.0,38589.0,0.7858]
[1643685923495,0.39429635,38592.0,38589.0,0.7858]
[1643685924195,0.46793197,38592.0,38589.0,0.7858]
[1643685926846,0.114795,38592.0,38589.0,0.7858]
[1643685927147,0.064795,38592.0,38589.0,0.7858]
[1643685928646,0.30423283,38591.0,38589.0,0.7858]
[1643685929096,0.41903051,38591.0,38589.0,0.7858]
[1643685932100,0.054447,38590.0,38589.0,0.7858]
[1643685932299,0.41903051,38591.0,38589.0,0.7858]
[1643685933144,0.054447,38590.0,38589.0,0.7858]
[1643685933550,0.41903051,38591.0,38589.0,0.7858]
[1643685933946,0.054447,38590.0,38589.0,0.7858]